Cogmind - Beta 15 @@@ ROGUE MODE // 2025.06.12 @ 06:52:38 Player: Fleshy Vegetable Bird Result: Destroyed by 03-O5Z(R) with Subdweller Machine Gun Performance ------------- Evolutions (0) 0 Regions Visited (2) 400 Robots Destroyed (40) 200 Value Destroyed (896) 896 Prototype IDs (14) 280 Alien Tech Used (0) 0 Bonus (0) 0 TOTAL SCORE: 1776 Bonus ------- None Cogmind --------- Core Integrity 0/250 Matter 78/300 Energy 199/200 System Corruption 1% Temperature Cool (0) Movement Rolling (120) Ox1 Location -10/Subcaves Parts ------- > --- POWER (1) -------- Subdweller Power Source > --- PROPULSION (2) --- Subdweller Monowheel > --- UTILITY (2) ------ Large Storage Unit > --- WEAPON (2) ------- (None) > --- INVENTORY (15) --- Subdweller Power Source Subdweller Power Source Subdweller Power Source Subdweller Monowheel Subdweller Optics Scrap Shield Hacking Suite Makeshift Hacking Suite Riot Gun Particle Gun Subdweller Laser Subdweller Beam Cannon Subdweller Machine Gun Battle Cannon Peak State ------------ > --- POWER ------------ Subdweller Power Source > --- PROPULSION ------- Subdweller Monowheel Subdweller Monowheel > --- UTILITY ---------- Large Storage Unit Subdweller Optics > --- WEAPON ----------- Particle Gun Subdweller Beam Cannon > --- INVENTORY -------- Subdweller Power Source Subdweller Power Source Subdweller Power Source Subdweller Monowheel Subdweller Monowheel Subdweller Optics Scrap Shield Hacking Suite Makeshift Hacking Suite Subdweller Laser Subdweller Laser Subdweller Beam Cannon Subdweller Machine Gun [Rating: 16] Favorites ----------- Power Light Ion Engine Engine Light Ion Engine Power Core Light Nuclear Core Propulsion Wheel Wheel Wheel Utility Large Storage Unit Device Seismic Detector Storage Large Storage Unit Protection Light Armor Plating Weapon Medium Laser Energy Gun Medium Laser Energy Cannon Subdweller Beam Cannon Ballistic Gun Assault Rifle Launcher Subdweller Shrapnel Launcher Special Weapon Mining Laser Build | -11 -10 -10 ------- Run | Yrd Mat Sub Slots Evolved . | . . . Power . | . . . Propulsion . | . . . Utility . | . . . Weapon . | . . . Parts Attached 36 | 7 10 19 Power 5 | 1 1 3 Engine 4 | 1 . 3 Core 1 | . 1 . Reactor . | . . . Propulsion 14 | 2 4 8 Treads . | . . . Leg . | . . . Wheel 14 | 2 4 8 Hover . | . . . Flight . | . . . Utility 7 | 2 2 3 Device 3 | 1 1 1 Storage 2 | 1 1 . Processor . | . . . Hackware . | . . . Protection 2 | . . 2 Artifact . | . . . Weapon 10 | 2 3 5 Energy Gun 3 | 2 1 . Energy Cannon 1 | . . 1 Ballistic Gun 1 | . 1 . Ballistic Cannon . | . . . Launcher 3 | . . 3 Special Weapon 2 | . 1 1 Impact Weapon . | . . . Slashing Weapon . | . . . Piercing Weapon . | . . . Special Melee Weapon . | . . . Unidentified Prototypes . | . . . Parts Lost 13 | . 2 11 Power 2 | . 1 1 Propulsion 4 | . 1 3 Utility 3 | . . 3 Weapon 4 | . . 4 Highest Loss Streak 4 | . 1 4 To Critical Strikes . | . . . Average Backups 11 | 2 8 13 Power 1 | . 1 2 Propulsion 3 | . 3 2 Utility 2 | . 1 3 Weapon 3 | . 2 4 Tool/Special . | . . . Unused Backups 19 | 1 1 17 Power 4 | . . 4 Propulsion 3 | 1 . 2 Utility 5 | . 1 4 Weapon 7 | . . 7 Tool/Special . | . . . Average Slot Usage (%) 98 | . 98 99 Engine 11 | . 8 13 Core 2 | . 4 . Wheel 27 | . 27 27 Device 10 | . 14 8 Storage 14 | . 14 14 Protection 3 | . . 5 Energy Gun 11 | . 15 8 Energy Cannon 3 | . . 5 Ballistic Gun 4 | . 9 1 Launcher 6 | . . 10 Special Weapon 1 | . 2 1 Peak Build Rating 16 | 8 11 16 Average Rating 11 | 5 8 13 On Entrance 6 | . 8 11 Naked Turns . | . . . Heaviest Build 43 | 13 31 43 Greatest Support 26 | 20 26 20 Greatest Overweight (x) 3 | 3 3 3 Average Overweight (x) 1 | . . 1 Largest Inventory Capacity 15 | 8 15 15 Average Capacity 13 | 7 12 15 Most Carried 15 | 8 12 15 Average Carried 11 | 2 8 14 Final Capacity 15 | 8 15 15 Final Carried 15 | 8 11 15 Class Distribution -------------------- 53% | Mutant 46% | Scavenger-Mutant Dominant Class ---------------- Mutant | -10/Materials Scavenger-Mutant | -10/Subcaves Resources | -11 -10 -10 ----------- Run | Yrd Mat Sub Matter Collected 1045 | 270 229 546 Remotely . | . . . Salvage Created 1278 | 161 697 420 Parts 99 | 21 41 37 Haulers Intercepted 2 | . 2 . Recyclers Shooed 1 | . 1 . Parts Field Recycled . | . . . Retrieved Matter . | . . . Parts Self-Destructed 8 | . . 8 Prevented . | . . . Kills | -11 -10 -10 ------- Run | Yrd Mat Sub Combat Hostiles Destroyed 23 | . 10 13 Guns 13 | . 10 3 Cannons 1 | . . 1 AOE 9 | . . 9 Classes Destroyed 10 | 2 6 2 Worker 3 | . 3 . Tunneler 7 | 5 2 . Hauler 2 | . 2 . Recycler 3 | 1 2 . Operator 1 | . 1 . Watcher 1 | . 1 . Swarmer 4 | . 4 . Grunt 6 | . 6 . Cobbler 1 | . . 1 Subdweller 13 | . . 13 Best Kill Streak 6 | 6 4 3 Combat Bots Only 4 | . 4 3 Max Kills in Single Turn 2 | 1 2 2 Gunslinging . | . . . Exploded 2 | . . 2 Melee . | . . . Uniques/NPCs Destroyed . | . . . Combat | -11 -10 -10 -------- Run | Yrd Mat Sub Hostile Shots Fired 112 | . 50 62 Missed 41 | . 18 23 Hits 71 | . 32 39 Projectile 71 | . 32 39 AOE 2 | . . 2 Damage Taken 1518 | . 444 1074 Core 262 | . 65 197 Absorbed by Shields . | . . . Core Remaining (%) 100 | 100 . . Volleys Fired 161 | 9 80 72 Largest 2 | 2 2 2 Hottest 165 | 100 100 165 Shots Fired 254 | 18 140 96 Gun 196 | 18 129 49 Cannon 1 | . . 1 Launcher 30 | . . 30 Special 27 | . 11 16 Kinetic 67 | . 36 31 Thermal 175 | 18 104 53 Explosive 12 | . . 12 Electromagnetic . | . . . Robot Hit Streak 13 | 3 13 12 Robot Miss Streak 3 | 2 3 2 Penetration Max . | . . . Secondary Targets . | . . . Shots Hit Robots 153 | 9 88 56 Core Hits 73 | 7 33 33 Critical Kills 1 | . 1 . Critical Parts Destroyed . | . . . Critical Strikes 2 | . 2 . Burn 1 | . 1 . Destroy 1 | . 1 . Melee Attacks . | . . . Impact . | . . . Slashing . | . . . Piercing . | . . . Sneak Attacks . | . . . Combat Hostiles . | . . . Follow-up Attacks . | . . . Damage Inflicted 3474 | 112 1169 2193 Guns 1764 | 112 1169 483 Cannons 29 | . . 29 Explosions 1670 | . . 1670 Melee . | . . . Ramming . | . . . Kinetic 1284 | . 316 968 Thermal 1407 | 112 853 442 Explosive 783 | . . 783 Electromagnetic . | . . . Impact . | . . . Slashing . | . . . Piercing . | . . . Highest Corruption 1 | . 1 1 Average Corruption 1 | . 1 1 Corruption Purged . | . . . Corruption Blocked . | . . . Effects 16 | . 6 10 Message Errors 2 | . 1 1 Matter Fused 6 | . 2 4 Heat Flow Errors 2 | . 1 1 Energy Discharges 1 | . . 1 Parts Rejected 1 | . 1 . Data Loss (minor) 2 | . . 2 Data Loss (major) 2 | . 1 1 Overload Shots . | . . . Overflow Damage 9 | . . 9 Projectiles . | . . . Explosions 9 | . . 9 Melee . | . . . Knockbacks . | . . . Impact . | . . . Kinetic . | . . . Secondary . | . . . Self-Inflicted Damage 72 | . . 72 Shots 2 | . . 2 Rammed . | . . . Targets Rammed . | . . . Kicked . | . . . Crushed . | . . . Highest Temperature 251 | 251 195 194 Average Temperature 60 | 110 51 51 Received Heat Transfer 309 | . 153 156 Siege Activations . | . . . Martial Activations . | . . . Shielding Activations . | . . . Robots Disrupted . | . . . Combat Hostiles . | . . . Robots Corrupted . | . . . Combat Hostiles . | . . . Parts Fried . | . . . Impact Corruptions . | . . . Robots Melted 1 | . 1 . Combat Hostiles . | . . . Parts Melted 3 | 1 1 1 Heat Transferred 3891 | 333 2479 1079 Parts Sabotaged . | . . . Parts Stolen . | . . . Parts Stripped . | . . . Power Chain Reactions . | . . . Alert | -11 -10 -10 ------- Run | Yrd Mat Sub Maximum Alert Level . | . . . Low Security (%) 100 | 100 100 . Level 1 . | . . . Level 2 . | . . . Level 3 . | . . . Level 4 . | . . . Level 5 . | . . . High Security . | . . . Max Security . | . . . Peak Influence 106 | 15 106 . Initial 3 | . 3 . Average 22 | 4 24 . Influence Increases 477 | 30 447 . Destroy 0b10 Robot/C 200 | . 200 . Destroy 0b10 Robot/NC 85 | 30 55 . Destroy Leader 56 | . 56 . Successful Hack 16 | . 16 . Destroy Structure 15 | . 15 . Lose Combat Pursuer 105 | . 105 . Influence Decreases 477 | 25 447 5 Entered New Map 5 | . 2 3 Time Decay 405 | 25 380 . Lost Part 18 | . 16 2 Purge Threat 49 | . 49 . Squads Dispatched 2 | . 2 . Investigation 1 | . 1 . Extermination . | . . . Reinforcement 1 | . 1 . Assault . | . . . Garrison . | . . . Intercept . | . . . Searches Triggered . | . . . Construction Impeded . | . . . Haulers Reinforced . | . . . Active Scanning Responses . | . . . Cargo Convoy Interrupts . | . . . Stealth | -11 -10 -10 --------- Run | Yrd Mat Sub Distress Signals 4 | . 4 . Communications Jammed . | . . . Distress Signals . | . . . Times Spotted 45 | . 26 19 Peak Tracking Total 4 | . 4 3 Tactical Retreats 4 | . 4 . Traps | -11 -10 -10 ------- Run | Yrd Mat Sub Traps Triggered 5 | . 4 1 Indirectly . | . . . Trap Hack Attempts . | . . . Triggered . | . . . Disarmed . | . . . Reprogrammed . | . . . Reused 2 | . . 2 Traps Extracted . | . . . Installed 2 | . . 2 Triggered . | . . . Most Traps Carried 1 | . . 1 Machines | -11 -10 -10 ---------- Run | Yrd Mat Sub Machines Disabled . | . . . Max in Single Turn . | . . . Machines Repaired . | . . . Machines Dismantled . | . . . Machines Sabotaged . | . . . Overloaded Fab Kills . | . . . Hacking | -11 -10 -10 --------- Run | Yrd Mat Sub Machines Accessed 8 | . 6 2 Terminals 6 | . 6 . Fabricators . | . . . Repair Stations . | . . . Recycling Units . | . . . Scanalyzers . | . . . Garrison Access . | . . . Total Hacks 40 | . 27 13 Successful 27 | . 14 13 Failed 13 | . 13 . Catastrophic . | . . . Database Lockouts . | . . . Manual 21 | . 21 . Terminals 27 | . 27 . Fabricators . | . . . Repair Stations . | . . . Recycling Units . | . . . Scanalyzers . | . . . Garrison Access . | . . . Terminal Hacks 20 | . 7 13 Record 12 | . . 12 Part Schematic 1 | . 1 . Robot Analysis 2 | . 2 . Prototype ID Bank 2 | . 2 . Alert Level 1 | . 1 . Unreport Threat 1 | . 1 . Proto ID Catalog 1 | . . 1 Fabricator Hacks . | . . . Repair Station Hacks . | . . . Recycling Unit Hacks . | . . . Scanalyzer . | . . . Garrison Access Hacks . | . . . Unauthorized Hacks 7 | . 7 . Terminals 7 | . 7 . Track 3 | . 3 . Botnet 4 | . 4 . Fabricators . | . . . Repair Stations . | . . . Recycling Units . | . . . Scanalyzers . | . . . Garrison Access . | . . . Data Cores Recovered . | . . . Used . | . . . Hacking Detections 6 | . 6 . Full Trace Events . | . . . Feedback Events . | . . . Feedback Blocked . | . . . Robot Schematics Acquired . | . . . Robots Built . | . . . Authchips . | . . . Time . | . . . Total Robot Build Rating . | . . . Part Schematics Acquired 1 | . 1 . Parts Built . | . . . Authchips . | . . . Time . | . . . Total Part Build Rating . | . . . Parts Repaired . | . . . Time . | . . . Parts Recycled . | . . . Recycled Matter . | . . . Retrieved Matter . | . . . Retrieved Components . | . . . Parts Scanalyzed . | . . . Part Schematics Acquired . | . . . Parts Damaged . | . . . Bothacking | -11 -10 -10 ------------ Run | Yrd Mat Sub Used RIF Installer . | . . . Robots Hacked . | . . . Non-combat . | . . . Combat . | . . . Robot Hacks Applied . | . . . Relay Couplers Released . | . . . Fabnet Peak Effective % . | . . . Robots Rewired . | . . . Allies Hacked . | . . . Hacks Repelled . | . . . Allies | -11 -10 -10 -------- Run | Yrd Mat Sub Total Allies . | . . . Largest Group . | . . . Highest-Rated Group . | . . . Highest-Rated Ally . | . . . Total Orders . | . . . Ally Attacks . | . . . Total Damage . | . . . Kills . | . . . Allies Corrupted . | . . . Allies Melted . | . . . Intel | -11 -10 -10 ------- Run | Yrd Mat Sub Active Infowar (turns) 2672 | 4 1417 1251 Optics 1247 | . . 1247 Seismic 1425 | 4 1417 4 Robot Analysis Total 2 | . 2 . Derelict Logs Recovered 1 | . . 1 Drone Launches . | . . . Drone Recoveries . | . . . Exploration | -11 -10 -10 ------------- Run | Yrd Mat Sub Turns Passed 3601 | 97 1418 2086 Spaces Moved 2302 | 52 938 1312 Core 14 | 14 . . Treads . | . . . Legs . | . . . Wheels 2288 | 38 938 1312 Hover . | . . . Flight . | . . . Fastest Speed 50 | 50 80 95 Average Speed 104 | 98 91 114 Slowest Speed 200 | 200 125 130 Overloaded Moves . | . . . Propulsion Burnouts . | . . . Robots Hopped . | . . . Potential Cave-ins 5 | . . 5 Cave-ins Triggered . | . . . Exploration Rate (%) 54 | 3 97 64 Regions Visited 2 Branch Regions 1 Pre-discovered Areas 1 | . . 1 Known Exits Taken . | . . . Unknown Exits Taken 2 | 1 1 . Scrap Searched 4 | . . 4 Spaces Dug 10 | . 10 . Terrain Destroyed 294 | . 11 283 Melee . | . . . Projectile 11 | . 11 . AOE 283 | . . 283 Terrain Rammed . | . . . Walls Destroyed . | . . . Machines Disabled . | . . . Actions | -11 -10 -10 --------- Run | Yrd Mat Sub Total 3196 | 79 1333 1784 Wait 607 | . 289 318 Move 2300 | 51 937 1312 Hop . | . . . Pick Up 49 | 10 7 32 Fast Attach 9 | 7 2 . Attach 11 | . 2 9 Detach . | . . . Swap 26 | . 9 17 Drop 31 | 2 7 22 Fire 161 | 9 80 72 Melee . | . . . Ram . | . . . Kick . | . . . Crush . | . . . Escape Stasis . | . . . Rewire . | . . . Trap 2 | . . 2 Miscellaneous . | . . . Route ------- -11/Scrapyard -10/Materials (discovered 6 exits: [*Mat x3] / [*Min x2] / *Sub) -10/Subcaves (discovered 2 exits: [*Mat x2]) History --------- Turn | Location | Event 28 | -11/Scrapyard | Discovered new exit (range 15) 98 | -11/Scrapyard | Entered Materials 182 | -10/Materials | Discovered new exit (range 11) 266 | -10/Materials | Discovered new exit (range 13) 307 | -10/Materials | Build established: Mutant 370 | -10/Materials | Discovered new exit (range 11) 1279 | -10/Materials | Discovered new exit (range 16) 1413 | -10/Materials | Discovered new exit (range 16) 1487 | -10/Materials | Discovered new exit (range 6) 1516 | -10/Materials | Entered Subcaves 1521 | -10/Subcaves | Ambushed by Subdwellers from Twisted Machinery 1616 | -10/Subcaves | Core integrity fell below 50% 1925 | -10/Subcaves | Shifting Twisted Machinery released Sub. Power Source 1928 | -10/Subcaves | Discovered new exit (range 5) 2058 | -10/Subcaves | Shifting Twisted Machinery released Battle Cannon 2140 | -10/Subcaves | Discovered new exit (range 2) 2253 | -10/Subcaves | Build established: Scavenger-Mutant 2259 | -10/Subcaves | Shifting Twisted Machinery released Sub. Power Source 2523 | -10/Subcaves | Visited Clippyterm 2527 | -10/Subcaves | Learned 40 Factory zone layouts 2650 | -10/Subcaves | Shifting Twisted Machinery released Sub. Shrapnel Launcher 2650 | -10/Subcaves | Ambushed by angry Subdweller bent on revenge 3009 | -10/Subcaves | Visited 4L-MR0's lab 3125 | -10/Subcaves | Ambushed by Subdweller buried in earth 3522 | -10/Subcaves | Learned location of Zion (-6) 3522 | -10/Subcaves | Met a Zionite searching for "candidates" 3574 | -10/Subcaves | Ambushed by Subdwellers from Twisted Machinery 3587 | -10/Subcaves | Ambushed by Subdweller buried in earth 3600 | -10/Subcaves | Ambushed by Subdweller buried in earth 3600 | -10/Subcaves | Ambushed by Subdweller buried in earth 3601 | -10/Subcaves | Core integrity fell below 20% 3602 | -10/Subcaves | Destroyed by 03-O5Z(R) with Subdweller Machine Gun Last Messages --------------- 03175_ Triggered Piercing Trap. 03175_ Spikes shoot up from the floor. 03514_ Z3-MU3(z): "She is not going to be happy we haven't found any suitable candidates yet." 03522_ Z3-MU3(z): "Hey you! It's really dangerous down here, I feel that you could die at any moment. For your health and safety might I suggest a trip to Zion?" World map updated: -6/Zion. 03546_ Dropped Sub. Power Source. 03546_ Acquired Sub. Power Source. 03574_ L0-5OO(R) emerges from the Twisted Machinery. 03574_ Sub. Beam Cannon destroyed. 03587_ Sub. Monowheel destroyed. 03588_ 00-JJ9(R): "THANKSYOU!" 03588_ Sub. Optics destroyed. 03600_ Sub. Shrapnel Launcher destroyed. 03601_ 03-O5Z(R): "ARGHSUB!" 03601_ BQ-95Q(R): "ARGHSUB!" Map ----- +----------------------------------------------------+ | ????????????????????? ???????????????????????? | | ????????????????????? #???????????????????????? | | ?????????????????????# #???????????????????????? | | ?????????????????#####" #???????????????????????? | | ?????????????????# "" ##??????????????????????? | | ?????????????????# "" #??????????????????????? | | ?????????????????# " #???????????????????????? | | ????????# ??????#"" #???????????????????????? | | ????? ????#" #???????????????????????? | | ??? ### ###?????##??????????????? | | ??? ;#??? ##?????????????? | | ??? ## ## ;;## #?????????????? | | ????????????## #?????????????? | | ?????????????# #?????????????? | | ?????????????# ## ## ##?????????????? | | ??????????? ??###?###"R ##??????????????? | | ?????????# ?????????## ;###???????????????? | | ?????????### ??????????# ;R ; #?????????????????? | | ???????????#???????????##; ;;;#####??????????????? | | ???????????????????????## #??????????????? | | ?????????????????????### #??????????????? | | ????????????????????##; ##?????????????? | | ????????????????????#; ;# #?????????????? | | ????????????????????#; ;## #?????????????? | | ????????????????????#; ;#?# #?????????????? | | ?????????????????????#; @ * #?? #?????????????? | | ?????????????????????#;RR; #??? #?????????????? | | ?????????????????????# ;; #??# #?????????????? | | ?????????????????????###### ### #?????????????? | | ????????????????????????### #?????????????? | | ?????????????????????#### ##?????????????? | | ?????????????????????# z #??????????????? | | ?????????????????????# #??????????????? | | ?????????????????????## ##??????????????? | | ?????????????????????## # ##???????????????? | | ????????????????????## ### ##???????????????? | | ????????????????????# ### ##??????????????? | | ????????????????????# #??????????????? | | ???????? ??????????### ##??????????????? | | ?????? ?????##?## ###???????????????? | | ????? #### ## ##?????????????????? | | ????? #??????????????????? | | ????? #??????????????????? | | ????? ##### ##??????????????????? | | ?????? ###?????????????????? | | ?????? ##????????????????? | | ???????# # # ##???????????????? | | ???????# ## ??#?### ##??????????????? | | ???????????????????# ### #??????????????? | | ???????????????????# ##### ##??????????????? | +----------------------------------------------------+ Best States ------------- Heat Dissipation 25 Energy Generation 10 Energy Capacity 250 Matter Stores 300 Matter Capacity 300 Sight Range 21 Terrain Scan Density 10 Armor Coverage 150 Evasion (%) 44 Item Schematics ----------------- Huge Storage Unit | -10/Materials | Hacked Robot Schematics ------------------ None Fabricated ------------ Nothing Repaired ---------- Nothing Alien Tech Used ----------------- None Achievements -------------- None Challenges ------------ None Game ------ Seed InterceptWaveShield Manual? 0 Play Time 00:23:52 Cumulative 373.3 hours Start 2025.06.12 @ 06:29:19 End 2025.06.12 @ 06:52:38 Sessions 1 Manual Loads 0 Difficulty Rogue Special Mode None Game No. 418 Rogue 418 Adventurer 0 Explorer 0 Win Type - Total 6 Types 3/1/1/1/0/0/0/0/0/0 Lore% 69 Gallery% 71 Achievement% 68 Wizard Run 0 Options --------- Layout 1 ASCII 0 Keyboard 0 Movement Numpad Keybinds 0 Fullscreen 1 Font 32/SmallcapsGlow Map View 50x35 Zoom Use 0% Tactical HUD 1 Map Filters NONE Filters NONE Steam 1 RUN: de8a27be-5e12-4c6f-8f03-a338135f70ce